[Event "Titled Tuesday Blitz March 07 Early 2023"]
[White "Bilan, Danila"]
[Black "Topalov, Aleksandar"]
[WhiteFideId "24161918"]
[BlackFideId "925659"]
[WhiteElo "2182"]
[BlackElo "2151"]
[Result "0-1"]
[Round "07"]
[TimeControl "180+2"]
[Date "2023.03.07"]
[WhiteClock "0:00:07"]
[BlackClock "0:01:02"]

1. d4 {[%clk 0:03:00]}  Nf6 {[%clk 0:02:59]} 2. Nf3 {[%clk 0:03:01]}  g6 {[%clk 0:02:57]} 3. Bg5 {[%clk 0:02:59]}  Bg7 {[%clk 0:02:57]} 4. c3 {[%clk 0:02:59]}  O-O {[%clk 0:02:53]} 5. Nbd2 {[%clk 0:03:00]}  d5 {[%clk 0:02:51]} 6. e3 {[%clk 0:02:59]}  c6 {[%clk 0:02:50]} 7. Bd3 {[%clk 0:02:59]}  Bg4 {[%clk 0:02:45]} 8. h3 {[%clk 0:02:59]}  Bxf3 {[%clk 0:02:45]} 9. Nxf3 {[%clk 0:02:59]}  Nbd7 {[%clk 0:02:45]} 10. O-O {[%clk 0:02:59]}  Qe8 {[%clk 0:02:42]} 11. c4 {[%clk 0:02:43]}  e5 {[%clk 0:02:42]} 12. dxe5 {[%clk 0:02:39]}  Nxe5 {[%clk 0:02:41]} 13. Nxe5 {[%clk 0:02:39]}  Qxe5 {[%clk 0:02:41]} 14. Bf4 {[%clk 0:02:39]}  Qe6 {[%clk 0:02:38]} 15. Qb3 {[%clk 0:02:19]}  dxc4 {[%clk 0:02:27]} 16. Bxc4 {[%clk 0:02:19]}  Qe7 {[%clk 0:02:27]} 17. Rfd1 {[%clk 0:02:16]}  Rfd8 {[%clk 0:02:27]} 18. Rxd8+ {[%clk 0:01:59]}  Rxd8 {[%clk 0:02:26]} 19. Rd1 {[%clk 0:01:58]}  Rxd1+ {[%clk 0:02:25]} 20. Qxd1 {[%clk 0:01:59]}  b5 {[%clk 0:02:22]} 21. Bb3 {[%clk 0:01:55]}  a5 {[%clk 0:02:21]} 22. a4 {[%clk 0:01:47]}  Ne4 {[%clk 0:02:06]} 23. axb5 {[%clk 0:01:36]}  cxb5 {[%clk 0:02:05]} 24. Qd5 {[%clk 0:01:29]}  a4 {[%clk 0:01:55]} 25. Ba2 {[%clk 0:01:20]}  Bxb2 {[%clk 0:01:31]} 26. Qxb5 {[%clk 0:01:19]}  a3 {[%clk 0:01:31]} 27. Bh6 {[%clk 0:01:03]}  Bg7 {[%clk 0:01:09]} 28. Bxg7 {[%clk 0:00:37]}  Kxg7 {[%clk 0:01:08]} 29. Qd5 {[%clk 0:00:31]}  Nc3 {[%clk 0:01:04]} 30. Qb3 {[%clk 0:00:12]}  Nxa2 {[%clk 0:01:03]} 31. Qxa2 {[%clk 0:00:13]}  Qb4 {[%clk 0:01:03]} 32. Qd5 {[%clk 0:00:07]}  Qb2 {[%clk 0:01:02]} 0-1


[Site "https://www.chess.com"]

[Event "Titled Tuesday Blitz March 07 Early 2023"]
[White "Kalajzic, Ivan"]
[Black "Tarasova, Viktoriya"]
[WhiteFideId "14506378"]
[BlackFideId "4175840"]
[WhiteElo "2203"]
[BlackElo "2182"]
[Result "1/2-1/2"]
[Round "07"]
[TimeControl "180+2"]
[Date "2023.03.07"]
[WhiteClock "0:00:12"]
[BlackClock "0:00:05"]

1. b3 {[%clk 0:03:00]}  e5 {[%clk 0:02:56]} 2. Bb2 {[%clk 0:03:00]}  Nc6 {[%clk 0:02:57]} 3. e3 {[%clk 0:03:00]}  d5 {[%clk 0:02:57]} 4. Bb5 {[%clk 0:03:00]}  Bd6 {[%clk 0:02:53]} 5. f4 {[%clk 0:03:00]}  Qe7 {[%clk 0:02:52]} 6. Nf3 {[%clk 0:03:00]}  Bg4 {[%clk 0:02:18]} 7. h3 {[%clk 0:02:57]}  Bxf3 {[%clk 0:02:15]} 8. Qxf3 {[%clk 0:02:58]}  Nf6 {[%clk 0:02:04]} 9. fxe5 {[%clk 0:02:31]}  Bxe5 {[%clk 0:02:03]} 10. Bxe5 {[%clk 0:02:31]}  Qxe5 {[%clk 0:02:04]} 11. Nc3 {[%clk 0:02:31]}  Rd8 {[%clk 0:01:52]} 12. O-O {[%clk 0:02:24]}  O-O {[%clk 0:01:51]} 13. Bxc6 {[%clk 0:02:22]}  bxc6 {[%clk 0:01:49]} 14. Qf4 {[%clk 0:02:22]}  Qe7 {[%clk 0:01:45]} 15. Rf2 {[%clk 0:02:07]}  h6 {[%clk 0:01:36]} 16. Raf1 {[%clk 0:02:07]}  Nh7 {[%clk 0:01:22]} 17. e4 {[%clk 0:01:45]}  d4 {[%clk 0:01:21]} 18. Na4 {[%clk 0:01:32]}  d3 {[%clk 0:01:17]} 19. c4 {[%clk 0:01:25]}  Ng5 {[%clk 0:01:14]} 20. Nc3 {[%clk 0:01:19]}  Rd4 {[%clk 0:01:11]} 21. Re1 {[%clk 0:00:59]}  Re8 {[%clk 0:01:11]} 22. h4 {[%clk 0:00:51]}  Ne6 {[%clk 0:01:10]} 23. Qe3 {[%clk 0:00:47]}  Qxh4 {[%clk 0:01:00]} 24. Ref1 {[%clk 0:00:38]}  Rf8 {[%clk 0:00:48]} 25. Rf5 {[%clk 0:00:36]}  a6 {[%clk 0:00:32]} 26. Ra5 {[%clk 0:00:24]}  Rfd8 {[%clk 0:00:27]} 27. Rxa6 {[%clk 0:00:22]}  Nc5 {[%clk 0:00:21]} 28. Rxc6 {[%clk 0:00:20]}  Nxe4 {[%clk 0:00:22]} 29. Nxe4 {[%clk 0:00:20]}  Rxe4 {[%clk 0:00:15]} 30. Qf3 {[%clk 0:00:21]}  Re7 {[%clk 0:00:14]} 31. Rc5 {[%clk 0:00:17]}  Qd4+ {[%clk 0:00:14]} 32. Qf2 {[%clk 0:00:17]}  Qxf2+ {[%clk 0:00:07]} 33. Rxf2 {[%clk 0:00:17]}  Ra8 {[%clk 0:00:05]} 34. Rd5 {[%clk 0:00:15]}  Rxa2 {[%clk 0:00:04]} 35. Rxd3 {[%clk 0:00:16]}  Ra1+ {[%clk 0:00:04]} 36. Rf1 {[%clk 0:00:16]}  Ree1 {[%clk 0:00:04]} 37. Rxe1 {[%clk 0:00:16]}  Rxe1+ {[%clk 0:00:05]} 38. Kf2 {[%clk 0:00:17]}  Re7 {[%clk 0:00:05]} 39. b4 {[%clk 0:00:17]}  c6 {[%clk 0:00:05]} 40. Rb3 {[%clk 0:00:16]}  Rb7 {[%clk 0:00:05]} 41. d4 {[%clk 0:00:15]}  Kf8 {[%clk 0:00:05]} 42. Ke3 {[%clk 0:00:16]}  Ke7 {[%clk 0:00:05]} 43. Kd3 {[%clk 0:00:16]}  Kd6 {[%clk 0:00:05]} 44. Kc3 {[%clk 0:00:16]}  f5 {[%clk 0:00:05]} 45. Ra3 {[%clk 0:00:16]}  g5 {[%clk 0:00:05]} 46. Ra8 {[%clk 0:00:16]}  Re7 {[%clk 0:00:03]} 47. Rh8 {[%clk 0:00:16]}  Re2 {[%clk 0:00:03]} 48. Rxh6+ {[%clk 0:00:15]}  Kc7 {[%clk 0:00:04]} 49. g3 {[%clk 0:00:13]}  Re3+ {[%clk 0:00:04]} 50. Kd2 {[%clk 0:00:13]}  Rxg3 {[%clk 0:00:04]} 51. Rh7+ {[%clk 0:00:13]}  Kc8 {[%clk 0:00:05]} 52. Rh8+ {[%clk 0:00:11]}  Kc7 {[%clk 0:00:04]} 53. Rh7+ {[%clk 0:00:12]}  Kc8 {[%clk 0:00:05]} 54. Rh8+ {[%clk 0:00:13]}  Kc7 {[%clk 0:00:05]} 55. Rh7+ {[%clk 0:00:12]} 1/2-1/2


[Site "https://www.chess.com"]

[Event "Titled Tuesday Blitz March 07 Early 2023"]
[White "Jiganchine, Roman"]
[Black "Mazurkiewicz, Michal"]
[WhiteFideId "2603667"]
[BlackFideId "1124943"]
[WhiteElo "2320"]
[BlackElo "2054"]
[Result "0-1"]
[Round "07"]
[TimeControl "180+2"]
[Date "2023.03.07"]
[WhiteClock "0:00:28"]
[BlackClock "0:01:48"]

1. e4 {[%clk 0:03:00]}  d6 {[%clk 0:02:59]} 2. d4 {[%clk 0:03:00]}  Nf6 {[%clk 0:03:00]} 3. Nc3 {[%clk 0:02:59]}  c6 {[%clk 0:03:00]} 4. Nf3 {[%clk 0:02:55]}  Bg4 {[%clk 0:03:00]} 5. Be3 {[%clk 0:02:50]}  e6 {[%clk 0:03:00]} 6. a4 {[%clk 0:02:38]}  d5 {[%clk 0:03:00]} 7. exd5 {[%clk 0:02:24]}  cxd5 {[%clk 0:03:01]} 8. Be2 {[%clk 0:02:19]}  Be7 {[%clk 0:03:00]} 9. h3 {[%clk 0:02:13]}  Bh5 {[%clk 0:03:00]} 10. Ne5 {[%clk 0:02:13]}  Bxe2 {[%clk 0:02:59]} 11. Nxe2 {[%clk 0:02:14]}  O-O {[%clk 0:02:59]} 12. O-O {[%clk 0:02:13]}  Nc6 {[%clk 0:02:59]} 13. f4 {[%clk 0:02:05]}  Ne4 {[%clk 0:02:53]} 14. c3 {[%clk 0:02:00]}  f6 {[%clk 0:02:47]} 15. Nxc6 {[%clk 0:01:52]}  bxc6 {[%clk 0:02:48]} 16. Qd3 {[%clk 0:01:45]}  f5 {[%clk 0:02:42]} 17. a5 {[%clk 0:01:44]}  Rb8 {[%clk 0:02:41]} 18. b4 {[%clk 0:01:43]}  Qc8 {[%clk 0:02:37]} 19. Kh1 {[%clk 0:01:34]}  a6 {[%clk 0:02:34]} 20. Kh2 {[%clk 0:01:31]}  Qb7 {[%clk 0:02:34]} 21. Ng1 {[%clk 0:01:20]}  Qb5 {[%clk 0:02:33]} 22. Qxb5 {[%clk 0:01:18]}  cxb5 {[%clk 0:02:34]} 23. Nf3 {[%clk 0:01:18]}  Bd6 {[%clk 0:02:32]} 24. Bd2 {[%clk 0:01:11]}  Rbc8 {[%clk 0:02:29]} 25. Rac1 {[%clk 0:01:08]}  Rc4 {[%clk 0:02:14]} 26. g3 {[%clk 0:01:08]}  Rfc8 {[%clk 0:02:10]} 27. Rfe1 {[%clk 0:00:39]}  h6 {[%clk 0:01:54]} 28. Re2 {[%clk 0:00:38]}  Kf7 {[%clk 0:01:51]} 29. Ree1 {[%clk 0:00:28]}  Nxd2 {[%clk 0:01:48]} 30. Nxd2 {[%clk 0:00:28]}  Rxc3 {[%clk 0:01:48]} 31. Rxc3 {[%clk 0:00:28]}  Rxc3 {[%clk 0:01:49]} 32. Nf3 {[%clk 0:00:28]}  Rxf3 {[%clk 0:01:48]} 0-1


[Site "https://www.chess.com"]

[Event "Titled Tuesday Blitz March 07 Early 2023"]
[White "Dinu, Dumitru-Daniel"]
[Black "babbilator"]
[WhiteFideId "1208403"]
[WhiteElo "2240"]
[BlackElo "2211"]
[Result "0-1"]
[Round "07"]
[TimeControl "180+2"]
[Date "2023.03.07"]
[WhiteClock "0:00:02"]
[BlackClock "0:00:01"]

1. e4 {[%clk 0:03:00]}  c5 {[%clk 0:02:58]} 2. f4 {[%clk 0:02:55]}  e6 {[%clk 0:02:55]} 3. Nf3 {[%clk 0:02:51]}  d5 {[%clk 0:02:54]} 4. Bb5+ {[%clk 0:02:47]}  Bd7 {[%clk 0:02:54]} 5. Bxd7+ {[%clk 0:02:44]}  Nxd7 {[%clk 0:02:52]} 6. d3 {[%clk 0:02:43]}  g6 {[%clk 0:02:34]} 7. O-O {[%clk 0:02:39]}  Bg7 {[%clk 0:02:34]} 8. Nc3 {[%clk 0:02:37]}  Ne7 {[%clk 0:02:34]} 9. f5 {[%clk 0:02:10]}  exf5 {[%clk 0:02:34]} 10. exf5 {[%clk 0:01:50]}  Nxf5 {[%clk 0:02:25]} 11. Re1+ {[%clk 0:01:46]}  Kf8 {[%clk 0:02:26]} 12. Nxd5 {[%clk 0:01:43]}  h6 {[%clk 0:02:16]} 13. Bf4 {[%clk 0:01:31]}  Nf6 {[%clk 0:02:13]} 14. Nc3 {[%clk 0:00:40]}  Kg8 {[%clk 0:02:00]} 15. Qd2 {[%clk 0:00:30]}  Kh7 {[%clk 0:01:59]} 16. Ne5 {[%clk 0:00:25]}  Rf8 {[%clk 0:01:46]} 17. Kh1 {[%clk 0:00:24]}  Nh5 {[%clk 0:01:41]} 18. g4 {[%clk 0:00:10]}  Nxf4 {[%clk 0:01:37]} 19. gxf5 {[%clk 0:00:10]}  g5 {[%clk 0:00:49]} 20. Ng4 {[%clk 0:00:06]}  Bxc3 {[%clk 0:00:25]} 21. Qxc3 {[%clk 0:00:05]}  f6 {[%clk 0:00:15]} 22. Re4 {[%clk 0:00:04]}  h5 {[%clk 0:00:15]} 23. Ne3 {[%clk 0:00:02]}  Qd7 {[%clk 0:00:09]} 24. Re1 {[%clk 0:00:02]}  Rae8 {[%clk 0:00:07]} 25. Nc4 {[%clk 0:00:03]}  Rxe4 {[%clk 0:00:04]} 26. Rxe4 {[%clk 0:00:03]}  Qxf5 {[%clk 0:00:04]} 27. Nd6 {[%clk 0:00:02]}  Qg4 {[%clk 0:00:04]} 28. Re7+ {[%clk 0:00:02]}  Kg6 {[%clk 0:00:01]} 29. Qd2 {[%clk 0:00:02]}  Qf3+ {[%clk 0:00:01]} 30. Kg1 {[%clk 0:00:02]}  Nh3# {[%clk 0:00:01]} 0-1


[Site "https://www.chess.com"]

[Event "Titled Tuesday Blitz March 07 Early 2023"]
[White "Ruge, Edison"]
[Black "Iskusnyh, Sergei"]
[WhiteFideId "4401000"]
[BlackFideId "4120027"]
[WhiteElo "2175"]
[BlackElo "2492"]
[Result "1/2-1/2"]
[Round "07"]
[TimeControl "180+2"]
[Date "2023.03.07"]
[WhiteClock "0:00:15"]
[BlackClock "0:00:15"]

1. e4 {[%clk 0:03:00]}  e6 {[%clk 0:02:59]} 2. d3 {[%clk 0:03:00]}  c5 {[%clk 0:02:58]} 3. Nd2 {[%clk 0:03:01]}  Nc6 {[%clk 0:02:57]} 4. Ngf3 {[%clk 0:03:01]}  g6 {[%clk 0:02:57]} 5. g3 {[%clk 0:03:02]}  Bg7 {[%clk 0:02:57]} 6. h4 {[%clk 0:03:02]}  Nf6 {[%clk 0:02:49]} 7. h5 {[%clk 0:03:02]}  Nxh5 {[%clk 0:02:48]} 8. Rxh5 {[%clk 0:03:02]}  gxh5 {[%clk 0:02:48]} 9. Nh4 {[%clk 0:03:01]}  d6 {[%clk 0:02:27]} 10. Qxh5 {[%clk 0:02:59]}  Nd4 {[%clk 0:02:27]} 11. Qd1 {[%clk 0:02:59]}  h5 {[%clk 0:02:22]} 12. c3 {[%clk 0:02:58]}  Nc6 {[%clk 0:02:22]} 13. Be2 {[%clk 0:02:55]}  Ne5 {[%clk 0:02:20]} 14. f4 {[%clk 0:02:53]}  Ng4 {[%clk 0:02:16]} 15. Bxg4 {[%clk 0:02:50]}  hxg4 {[%clk 0:02:17]} 16. Qxg4 {[%clk 0:02:50]}  Bf6 {[%clk 0:02:17]} 17. Ndf3 {[%clk 0:02:45]}  Bd7 {[%clk 0:02:15]} 18. Be3 {[%clk 0:02:43]}  Qb6 {[%clk 0:02:12]} 19. O-O-O {[%clk 0:02:41]}  O-O-O {[%clk 0:02:09]} 20. Ng5 {[%clk 0:02:27]}  Rdg8 {[%clk 0:01:57]} 21. Qe2 {[%clk 0:02:25]}  Be8 {[%clk 0:01:52]} 22. Nhf3 {[%clk 0:02:16]}  Kb8 {[%clk 0:01:27]} 23. e5 {[%clk 0:02:15]}  Be7 {[%clk 0:01:21]} 24. d4 {[%clk 0:02:04]}  cxd4 {[%clk 0:01:19]} 25. Bxd4 {[%clk 0:02:03]}  Qc7 {[%clk 0:01:05]} 26. exd6 {[%clk 0:02:02]}  Bxd6 {[%clk 0:01:05]} 27. Bxh8 {[%clk 0:02:01]}  Rxh8 {[%clk 0:01:06]} 28. Qd3 {[%clk 0:01:54]}  Be7 {[%clk 0:01:00]} 29. Ne4 {[%clk 0:01:39]}  Bc6 {[%clk 0:00:57]} 30. Ne5 {[%clk 0:01:38]}  Rd8 {[%clk 0:00:46]} 31. Qe3 {[%clk 0:01:13]}  Rxd1+ {[%clk 0:00:44]} 32. Kxd1 {[%clk 0:01:13]}  Be8 {[%clk 0:00:44]} 33. Kc2 {[%clk 0:01:09]}  f6 {[%clk 0:00:41]} 34. Nd3 {[%clk 0:01:06]}  Qc6 {[%clk 0:00:41]} 35. Nd2 {[%clk 0:01:02]}  Bg6 {[%clk 0:00:39]} 36. g4 {[%clk 0:00:49]}  Bd8 {[%clk 0:00:29]} 37. f5 {[%clk 0:00:46]}  exf5 {[%clk 0:00:28]} 38. gxf5 {[%clk 0:00:46]}  Bf7 {[%clk 0:00:25]} 39. Nb4 {[%clk 0:00:38]}  Qd7 {[%clk 0:00:21]} 40. Qd3 {[%clk 0:00:34]}  Qa4+ {[%clk 0:00:17]} 41. Nb3 {[%clk 0:00:32]}  Bc7 {[%clk 0:00:15]} 42. Qd4 {[%clk 0:00:29]}  Qe8 {[%clk 0:00:13]} 43. Nc5 {[%clk 0:00:28]}  Qe2+ {[%clk 0:00:12]} 44. Qd2 {[%clk 0:00:28]}  Qe7 {[%clk 0:00:09]} 45. Qd4 {[%clk 0:00:21]}  Be5 {[%clk 0:00:09]} 46. Nca6+ {[%clk 0:00:19]}  Kc8 {[%clk 0:00:08]} 47. Qc5+ {[%clk 0:00:18]}  Qxc5 {[%clk 0:00:07]} 48. Nxc5 {[%clk 0:00:18]}  Bd6 {[%clk 0:00:07]} 49. Ne4 {[%clk 0:00:18]}  Be7 {[%clk 0:00:07]} 50. b3 {[%clk 0:00:17]}  Bh5 {[%clk 0:00:07]} 51. Nd3 {[%clk 0:00:17]}  Bg4 {[%clk 0:00:07]} 52. Ng3 {[%clk 0:00:14]}  Bd6 {[%clk 0:00:07]} 53. Nh5 {[%clk 0:00:14]}  Be7 {[%clk 0:00:06]} 54. Ng7 {[%clk 0:00:14]}  Bf8 {[%clk 0:00:06]} 55. Ne6 {[%clk 0:00:12]}  Be7 {[%clk 0:00:06]} 56. Ng7 {[%clk 0:00:12]}  Bf8 {[%clk 0:00:06]} 57. Ne6 {[%clk 0:00:12]}  Bh6 {[%clk 0:00:07]} 58. Nd4 {[%clk 0:00:12]}  Be3 {[%clk 0:00:06]} 59. Nc5 {[%clk 0:00:10]}  Bxd4 {[%clk 0:00:05]} 60. cxd4 {[%clk 0:00:10]}  Bxf5+ {[%clk 0:00:06]} 61. Kc3 {[%clk 0:00:11]}  Kc7 {[%clk 0:00:06]} 62. d5 {[%clk 0:00:10]}  Kd6 {[%clk 0:00:06]} 63. Kd4 {[%clk 0:00:11]}  Bb1 {[%clk 0:00:06]} 64. Nxb7+ {[%clk 0:00:11]}  Kc7 {[%clk 0:00:06]} 65. Nc5 {[%clk 0:00:11]}  Kd6 {[%clk 0:00:07]} 66. Ne4+ {[%clk 0:00:10]}  Ke7 {[%clk 0:00:06]} 67. a4 {[%clk 0:00:11]}  f5 {[%clk 0:00:06]} 68. Nc5 {[%clk 0:00:10]}  f4 {[%clk 0:00:06]} 69. b4 {[%clk 0:00:09]}  Kd6 {[%clk 0:00:05]} 70. Ne4+ {[%clk 0:00:09]}  Bxe4 {[%clk 0:00:04]} 71. Kxe4 {[%clk 0:00:08]}  f3 {[%clk 0:00:05]} 72. Kxf3 {[%clk 0:00:09]}  Kxd5 {[%clk 0:00:06]} 73. Ke3 {[%clk 0:00:09]}  Kc4 {[%clk 0:00:06]} 74. b5 {[%clk 0:00:09]}  Kb4 {[%clk 0:00:06]} 75. Kd3 {[%clk 0:00:10]}  Kxa4 {[%clk 0:00:06]} 76. Kc3 {[%clk 0:00:11]}  Kxb5 {[%clk 0:00:07]} 77. Kb3 {[%clk 0:00:11]}  a5 {[%clk 0:00:08]} 78. Ka3 {[%clk 0:00:12]}  a4 {[%clk 0:00:09]} 79. Ka2 {[%clk 0:00:12]}  Ka5 {[%clk 0:00:09]} 80. Ka1 {[%clk 0:00:13]}  Kb4 {[%clk 0:00:10]} 81. Ka2 {[%clk 0:00:14]}  a3 {[%clk 0:00:11]} 82. Ka1 {[%clk 0:00:14]}  Kb3 {[%clk 0:00:12]} 83. Kb1 {[%clk 0:00:14]}  Ka4 {[%clk 0:00:13]} 84. Ka1 {[%clk 0:00:14]}  Kb4 {[%clk 0:00:14]} 85. Kb1 {[%clk 0:00:15]}  Kb3 {[%clk 0:00:14]} 86. Ka1 {[%clk 0:00:15]}  a2 {[%clk 0:00:15]} 1/2-1/2


[Site "https://www.chess.com"]

[Event "Titled Tuesday Blitz March 07 Early 2023"]
[White "Sovetbekova, Nurai"]
[Black "Petre, Nad-Titus"]
[WhiteFideId "13801910"]
[BlackFideId "1204165"]
[WhiteElo "1857"]
[BlackElo "2354"]
[Result "0-1"]
[Round "07"]
[TimeControl "180+2"]
[Date "2023.03.07"]
[WhiteClock "0:01:31"]
[BlackClock "0:01:08"]

1. d4 {[%clk 0:03:00]}  d6 {[%clk 0:02:58]} 2. c4 {[%clk 0:03:00]}  e5 {[%clk 0:02:58]} 3. Nf3 {[%clk 0:02:57]}  e4 {[%clk 0:02:58]} 4. Nfd2 {[%clk 0:02:53]}  f5 {[%clk 0:02:57]} 5. Nc3 {[%clk 0:02:52]}  Nf6 {[%clk 0:02:56]} 6. e3 {[%clk 0:02:51]}  g6 {[%clk 0:02:56]} 7. Be2 {[%clk 0:02:51]}  c5 {[%clk 0:02:46]} 8. dxc5 {[%clk 0:02:46]}  dxc5 {[%clk 0:02:46]} 9. b3 {[%clk 0:02:46]}  Nc6 {[%clk 0:02:39]} 10. Bb2 {[%clk 0:02:45]}  Bg7 {[%clk 0:02:39]} 11. a3 {[%clk 0:02:41]}  O-O {[%clk 0:02:37]} 12. h4 {[%clk 0:02:39]}  h5 {[%clk 0:02:34]} 13. Qc2 {[%clk 0:02:37]}  Nd4 {[%clk 0:02:27]} 14. exd4 {[%clk 0:02:24]}  cxd4 {[%clk 0:02:28]} 15. Nd5 {[%clk 0:02:23]}  Nxd5 {[%clk 0:02:22]} 16. cxd5 {[%clk 0:02:22]}  d3 {[%clk 0:02:23]} 17. Qc1 {[%clk 0:02:11]}  Bxb2 {[%clk 0:02:18]} 18. Qxb2 {[%clk 0:02:10]}  dxe2 {[%clk 0:02:19]} 19. Kxe2 {[%clk 0:02:01]}  Qxd5 {[%clk 0:02:18]} 20. Rhd1 {[%clk 0:02:01]}  f4 {[%clk 0:01:45]} 21. Nc4 {[%clk 0:01:57]}  Bg4+ {[%clk 0:01:39]} 22. f3 {[%clk 0:01:55]}  exf3+ {[%clk 0:01:38]} 23. Kf2 {[%clk 0:01:52]}  Qc5+ {[%clk 0:01:22]} 24. Rd4 {[%clk 0:01:39]}  Rad8 {[%clk 0:01:15]} 25. Rd1 {[%clk 0:01:35]}  fxg2 {[%clk 0:01:12]} 26. Kxg2 {[%clk 0:01:33]}  Bxd1 {[%clk 0:01:08]} 27. Rxd8 {[%clk 0:01:31]}  Rxd8 {[%clk 0:01:08]} 28. Qf6 {[%clk 0:01:31]}  Qc6+ {[%clk 0:01:08]} 0-1


[Site "https://www.chess.com"]

[Event "Titled Tuesday Blitz March 07 Early 2023"]
[White "Janaszak, Dawid"]
[Black "Zampronha, Wladimir Camilo"]
[WhiteFideId "1119206"]
[BlackFideId "2103087"]
[WhiteElo "2220"]
[BlackElo "2176"]
[Result "1-0"]
[Round "07"]
[TimeControl "180+2"]
[Date "2023.03.07"]
[WhiteClock "0:01:40"]
[BlackClock "0:01:44"]

1. e4 {[%clk 0:03:00]}  c5 {[%clk 0:02:59]} 2. b4 {[%clk 0:03:00]}  d5 {[%clk 0:02:58]} 3. exd5 {[%clk 0:02:57]}  Qxd5 {[%clk 0:02:59]} 4. Bb2 {[%clk 0:02:53]}  cxb4 {[%clk 0:02:56]} 5. Nf3 {[%clk 0:02:53]}  Nf6 {[%clk 0:02:54]} 6. c4 {[%clk 0:02:54]}  bxc3 {[%clk 0:02:53]} 7. Nxc3 {[%clk 0:02:54]}  Qa5 {[%clk 0:02:52]} 8. Bc4 {[%clk 0:02:52]}  Bf5 {[%clk 0:02:47]} 9. Qb3 {[%clk 0:02:51]}  Nbd7 {[%clk 0:02:21]} 10. Bxf7+ {[%clk 0:02:48]}  Kd8 {[%clk 0:02:22]} 11. O-O {[%clk 0:02:39]}  e6 {[%clk 0:02:22]} 12. Nd4 {[%clk 0:02:35]}  Nc5 {[%clk 0:02:20]} 13. Qc4 {[%clk 0:02:26]}  Bd3 {[%clk 0:02:18]} 14. Nxe6+ {[%clk 0:02:18]}  Nxe6 {[%clk 0:02:14]} 15. Qxe6 {[%clk 0:02:18]}  Bxf1 {[%clk 0:02:12]} 16. Rxf1 {[%clk 0:02:15]}  Bb4 {[%clk 0:02:07]} 17. Re1 {[%clk 0:01:58]}  Rf8 {[%clk 0:02:07]} 18. a3 {[%clk 0:01:54]}  Bxa3 {[%clk 0:02:04]} 19. Bxa3 {[%clk 0:01:48]}  Qxa3 {[%clk 0:02:03]} 20. Nb5 {[%clk 0:01:48]}  Qc5 {[%clk 0:01:56]} 21. Nd6 {[%clk 0:01:48]}  Kc7 {[%clk 0:01:48]} 22. Qe7+ {[%clk 0:01:47]}  Kc6 {[%clk 0:01:44]} 23. Qxb7+ {[%clk 0:01:40]}  Kxd6 {[%clk 0:01:44]} 24. Re6# {[%clk 0:01:40]} 1-0


[Site "https://www.chess.com"]

[Event "Titled Tuesday Blitz March 07 Early 2023"]
[White "UNSTOPPABLE_LEGEND"]
[Black "Alhadad, Mahmoud"]
[BlackFideId "11501863"]
[WhiteElo "2490"]
[BlackElo "1955"]
[Result "1-0"]
[Round "07"]
[TimeControl "180+2"]
[Date "2023.03.07"]
[WhiteClock "0:00:55"]
[BlackClock "0:00:18"]

1. d4 {[%clk 0:03:00]}  d5 {[%clk 0:02:58]} 2. c4 {[%clk 0:03:00]}  Nc6 {[%clk 0:02:59]} 3. Nf3 {[%clk 0:02:59]}  Bg4 {[%clk 0:02:58]} 4. e3 {[%clk 0:02:58]}  e6 {[%clk 0:02:58]} 5. Nc3 {[%clk 0:02:57]}  Bb4 {[%clk 0:02:58]} 6. a3 {[%clk 0:02:52]}  Bxc3+ {[%clk 0:02:58]} 7. bxc3 {[%clk 0:02:53]}  Nf6 {[%clk 0:02:58]} 8. Rb1 {[%clk 0:02:50]}  O-O {[%clk 0:02:54]} 9. cxd5 {[%clk 0:02:37]}  Qxd5 {[%clk 0:02:49]} 10. c4 {[%clk 0:02:31]}  Qa5+ {[%clk 0:02:48]} 11. Qd2 {[%clk 0:02:26]}  Bxf3 {[%clk 0:02:35]} 12. Qxa5 {[%clk 0:02:22]}  Nxa5 {[%clk 0:02:36]} 13. gxf3 {[%clk 0:02:23]}  b6 {[%clk 0:02:36]} 14. Bd2 {[%clk 0:02:19]}  Nb7 {[%clk 0:02:36]} 15. c5 {[%clk 0:02:17]}  Rfd8 {[%clk 0:02:23]} 16. Ba6 {[%clk 0:02:16]}  Rab8 {[%clk 0:02:23]} 17. Ke2 {[%clk 0:02:14]}  Na5 {[%clk 0:02:03]} 18. Rhc1 {[%clk 0:02:10]}  Nd5 {[%clk 0:01:43]} 19. e4 {[%clk 0:01:58]}  Ne7 {[%clk 0:01:38]} 20. Be3 {[%clk 0:01:47]}  f5 {[%clk 0:01:34]} 21. Bg5 {[%clk 0:01:38]}  Re8 {[%clk 0:01:20]} 22. cxb6 {[%clk 0:01:33]}  Rxb6 {[%clk 0:01:11]} 23. Rxb6 {[%clk 0:01:31]}  cxb6 {[%clk 0:01:11]} 24. Bb5 {[%clk 0:01:25]}  Rc8 {[%clk 0:01:05]} 25. Bd7 {[%clk 0:01:12]}  Rxc1 {[%clk 0:01:00]} 26. Bxe6+ {[%clk 0:01:13]}  Kf8 {[%clk 0:00:55]} 27. Bxc1 {[%clk 0:01:13]}  fxe4 {[%clk 0:00:54]} 28. fxe4 {[%clk 0:01:14]}  Nec6 {[%clk 0:00:52]} 29. Kd3 {[%clk 0:01:12]}  Ke7 {[%clk 0:00:50]} 30. Ba2 {[%clk 0:01:12]}  Nb7 {[%clk 0:00:46]} 31. e5 {[%clk 0:01:02]}  h6 {[%clk 0:00:41]} 32. Ke4 {[%clk 0:01:03]}  Ncd8 {[%clk 0:00:20]} 33. d5 {[%clk 0:01:02]}  Nc5+ {[%clk 0:00:20]} 34. Kd4 {[%clk 0:01:01]}  Nf7 {[%clk 0:00:18]} 35. d6+ {[%clk 0:00:59]}  Kf8 {[%clk 0:00:18]} 36. Kd5 {[%clk 0:00:59]}  Nxe5 {[%clk 0:00:18]} 37. Kxe5 {[%clk 0:00:57]}  Nd3+ {[%clk 0:00:18]} 38. Ke6 {[%clk 0:00:57]}  Nxc1 {[%clk 0:00:18]} 39. d7 {[%clk 0:00:57]}  Nxa2 {[%clk 0:00:18]} 40. d8=Q# {[%clk 0:00:55]} 1-0


[Site "https://www.chess.com"]

[Event "Titled Tuesday Blitz March 07 Early 2023"]
[White "Rottenwohrer Suarez, Juan"]
[Black "Smith, Garrett L"]
[WhiteFideId "32068182"]
[BlackFideId "2024829"]
[WhiteElo "2174"]
[BlackElo "2274"]
[Result "1-0"]
[Round "07"]
[TimeControl "180+2"]
[Date "2023.03.07"]
[WhiteClock "0:01:43"]
[BlackClock "0:01:40"]

1. Nf3 {[%clk 0:03:00]}  c5 {[%clk 0:03:00]} 2. g3 {[%clk 0:03:01]}  Nc6 {[%clk 0:03:00]} 3. Bg2 {[%clk 0:03:02]}  e5 {[%clk 0:03:00]} 4. c4 {[%clk 0:02:58]}  Nf6 {[%clk 0:03:00]} 5. O-O {[%clk 0:02:58]}  d6 {[%clk 0:03:00]} 6. Nc3 {[%clk 0:02:57]}  Be6 {[%clk 0:02:59]} 7. d3 {[%clk 0:02:54]}  h6 {[%clk 0:02:58]} 8. a3 {[%clk 0:02:46]}  Be7 {[%clk 0:02:56]} 9. b4 {[%clk 0:02:43]}  cxb4 {[%clk 0:02:54]} 10. axb4 {[%clk 0:02:43]}  Nxb4 {[%clk 0:02:53]} 11. Qa4+ {[%clk 0:02:32]}  Nc6 {[%clk 0:02:51]} 12. Ba3 {[%clk 0:02:32]}  O-O {[%clk 0:02:47]} 13. Rfb1 {[%clk 0:02:32]}  Rb8 {[%clk 0:02:44]} 14. Ne1 {[%clk 0:02:23]}  Qd7 {[%clk 0:02:08]} 15. Nc2 {[%clk 0:02:21]}  a6 {[%clk 0:01:54]} 16. Nb4 {[%clk 0:01:53]}  Nd4 {[%clk 0:01:46]} 17. Qxd7 {[%clk 0:01:50]}  Bxd7 {[%clk 0:01:40]} 18. e3 {[%clk 0:01:48]}  Ne6 {[%clk 0:01:40]} 19. Nbd5 {[%clk 0:01:43]} 1-0


[Site "https://www.chess.com"]